bitfinex-derivatives/quotes_SOLF0:USTF0_20250206
["timestamp","ask_amount","ask_price","bid_price","bid_amount"]
[1738816733993,13.5174101,201.3,201.29,0.0338024]
[1738816736385,8.5500101,201.3,201.2,8.5500101]
[1738816736683,8.5500101,201.25,201.18,16.5116101]
[1738816737588,0.03240054,201.24,201.19,0.03305263]
[1738816737985,0.03240054,201.24,201.19,5.00305263]
[1738816739683,0.03240054,201.24,201.19,0.03305263]
[1738816740485,0.03240054,201.24,201.2,4.9698]
[1738816741683,0.03240054,201.24,201.19,0.03305263]
[1738816742890,0.03240054,201.24,201.2,4.9699]
[1738816746889,0.03240054,201.24,201.21,4.9694]
[1738816747089,0.03240054,201.24,201.22,8.5500101]
[1738816747694,0.03240054,201.24,201.23,4.9691]
[1738816749383,0.03240054,201.24,201.19,0.03305263]
[1738816749988,5.00130054,201.24,201.19,5.00315263]
[1738816750488,8.5500101,201.23,201.19,5.00315263]
[1738816751790,8.5500101,201.23,201.19,0.03305263]
[1738816752285,13.5192101,201.23,201.19,0.03305263]
[1738816752490,8.5500101,201.21,201.19,0.03305263]
[1738816754095,8.5500101,201.23,201.19,0.03305263]
[1738816754588,0.03240054,201.24,201.19,0.03305263]
[1738816755894,0.03240054,201.24,201.2,4.9698]
[1738816758692,0.03240054,201.24,201.23,4.9691]
[1738816759495,4.9669,201.33,201.26,4.9683]
[1738816759697,4.9669,201.33,201.21,13.33367491]
[1738816760393,4.9669,201.32,201.26,4.9682]
[1738816760795,0.03573419,201.31,201.27,0.03692113]
[1738816761703,13.3694091,201.31,201.27,0.03692113]
[1738816762700,4.9674,201.3,201.27,0.03692113]
[1738816763702,13.3694091,201.31,201.27,0.03692113]
[1738816763905,4.9677,201.29,201.27,0.03692113]
[1738816775908,4.9679,201.28,201.27,0.03692113]
[1738816778717,13.50101297,201.28,201.27,0.03692113]
[1738816782018,13.50101297,201.28,201.27,0.00333415]
[1738816784119,8.53311297,201.28,201.18,4.9701]
[1738816784312,8.53311297,201.23,201.18,4.9701]
[1738816785121,8.53311297,201.23,201.17,1.4688]
[1738816785321,8.53311297,201.21,201.18,0.03657138]
[1738816785816,8.56857204,201.23,201.18,5.00687138]
[1738816786017,0.03545907,201.23,201.18,8.56968435]
[1738816786618,0.03545907,201.23,201.19,4.97]
[1738816786920,0.03545907,201.23,201.18,8.56968435]
[1738816787821,0.03545907,201.23,201.21,4.9695]
[1738816789719,0.03545907,201.23,201.2,4.9699]
[1738816795826,0.03545907,201.23,201.18,8.56968435]
[1738816796025,0.03545907,201.23,201.18,5.00667138]
[1738816796749,0.03545907,201.23,201.18,0.03657138]
[1738816796931,0.03545907,201.23,201.19,4.9701]
[1738816798128,0.03545907,201.23,201.2,4.9699]
[1738816799929,0.03545907,201.23,201.18,8.56968435]
[1738816800129,0.03545907,201.23,201.19,4.9701]
[1738816802228,0.03545907,201.23,201.18,8.56968435]
[1738816802825,0.03545907,201.23,201.22,4.9694]
[1738816803033,8.53311297,201.31,201.22,8.53311297]
[1738816803234,8.53311297,201.33,201.24,8.53311297]
[1738816803728,13.49981297,201.33,201.27,4.9681]
[1738816804129,0.03459919,201.32,201.28,0.03593685]
[1738816805036,8.53311297,201.31,201.28,0.03593685]
[1738816805634,8.53311297,201.29,201.28,0.03593685]
[1738816805930,13.50081297,201.29,201.28,0.03593685]
[1738816807034,8.53311297,201.29,201.28,0.03593685]
[1738816811845,13.50081297,201.29,201.28,0.03593685]
[1738816817551,8.53311297,201.29,201.28,0.03593685]
[1738816820547,13.50081297,201.29,201.28,0.03593685]
[1738816822048,8.53311297,201.29,201.2,4.9697]
[1738816822249,8.53311297,201.24,201.2,4.9697]
[1738816823256,8.56455162,201.24,201.2,5.00288154]
[1738816824258,8.56455162,201.24,201.2,0.03318154]
[1738816824556,8.53311297,201.22,201.2,0.03318154]
[1738816825057,8.56455162,201.24,201.2,0.03318154]
[1738816826156,8.56455162,201.24,201.21,4.9696]
[1738816827659,8.56455162,201.24,201.2,0.03318154]
[1738816828861,8.56455162,201.24,201.2,5.00278154]
[1738816829059,8.56455162,201.24,201.2,0.03318154]
[1738816829357,0.03143865,201.24,201.23,4.9691]
[1738816833365,8.53311297,201.3,201.26,4.9684]
[1738816833568,8.53311297,201.32,201.26,8.53311297]
[1738816833966,8.53311297,201.32,201.28,4.9678]
[1738816834667,8.56923937,201.32,201.28,5.00343535]
[1738816835367,8.56923937,201.32,201.28,0.03563535]
[1738816835564,8.53311297,201.3,201.28,0.03563535]
[1738816842276,8.53311297,201.3,201.28,5.00353535]
[1738816843079,8.56923937,201.32,201.28,0.03563535]
[1738816843276,8.56923937,201.32,201.29,4.9677]
[1738816844078,0.0361264,201.32,201.3,4.9674]
[1738816844777,0.0361264,201.32,201.3,4.9672]
[1738816844978,0.0361264,201.32,201.28,8.56874832]
[1738816845179,0.0361264,201.32,201.31,4.9672]
[1738816845976,0.0361264,201.32,201.3,4.9674]
[1738816847880,0.0361264,201.32,201.28,13.53654832]
[1738816848080,0.0361264,201.32,201.28,5.00343535]
[1738816851487,0.0361264,201.32,201.28,0.03563535]
[1738816851687,0.0361264,201.32,201.29,4.9676]
[1738816854487,0.0361264,201.32,201.28,0.03563535]
[1738816854691,0.0361264,201.32,201.28,5.00353535]
[1738816860195,0.0361264,201.32,201.29,4.9676]
[1738816860992,0.0361264,201.32,201.28,5.00353535]
[1738816861692,8.53311297,201.3,201.28,0.03563535]
[1738816863094,8.56923937,201.32,201.28,5.00343535]
[1738816863996,8.56923937,201.32,201.28,0.03563535]
[1738816864195,8.56923937,201.32,201.29,4.9676]
[1738816867400,8.56923937,201.32,201.28,5.00353535]
[1738816869596,0.0361264,201.32,201.29,4.9676]
[1738816871692,0.0361264,201.32,201.28,5.00353535]
[1738816871897,8.56923937,201.32,201.28,0.03563535]
[1738816873300,0.0361264,201.32,201.28,0.03563535]
[1738816873695,0.0361264,201.32,201.3,4.9674]
[1738816873903,0.0361264,201.32,201.28,8.56874832]
[1738816874795,0.0361264,201.32,201.31,4.9672]
[1738816890212,0.0361264,201.32,201.3,4.9674]
[1738816891211,0.0361264,201.32,201.28,0.03563535]
[1738816891606,0.0361264,201.32,201.28,8.56874832]
[1738816892103,0.0361264,201.32,201.3,8.53311297]
[1738816892306,8.53311297,201.4,201.3,8.53311297]
[1738816892504,8.53311297,201.42,201.34,8.53311297]
[1738816892706,8.53311297,201.44,201.36,8.53311297]
[1738816892906,8.53311297,201.44,201.38,8.53311297]
[1738816893509,8.53311297,201.44,201.39,0.03741781]
[1738816893510,0.03220491,201.43,201.39,0.03741781]
[1738816893911,0.03220491,201.43,201.41,4.9647]
[1738816897514,0.03220491,201.43,201.42,8.53311297]
[1738816899214,0.03220491,201.43,201.42,13.49751297]
[1738816901015,0.03220491,201.43,201.4,4.9647]
[1738816903522,0.03220491,201.43,201.39,0.03741781]
[1738816905716,13.49761297,201.42,201.39,0.03741781]
[1738816908122,8.53311297,201.42,201.39,5.00251781]
[1738816908317,0.03220491,201.43,201.39,5.00251781]
[1738816910021,0.03220491,201.43,201.39,0.03741781]
[1738816910721,0.03220491,201.43,201.42,4.9644]
[1738816911122,0.03220491,201.43,201.39,0.03741781]
[1738816912724,0.03220491,201.43,201.4,4.9649]
[1738816918830,8.53311297,201.42,201.39,0.03741781]
[1738816920033,8.53311297,201.4,201.39,0.03741781]
[1738816920728,13.49801297,201.4,201.39,0.03741781]
[1738816921130,8.53311297,201.4,201.39,0.03741781]
[1738816934244,0.03220491,201.43,201.39,0.03741781]
[1738816934849,0.03220491,201.43,201.4,8.53311297]
[1738816935247,0.03220491,201.43,201.42,4.9644]
[1738816936545,0.03220491,201.43,201.39,0.03741781]
[1738816936753,8.56531788,201.43,201.39,0.03741781]
[1738816936947,0.03220491,201.43,201.39,0.03741781]
[1738816937751,0.03220491,201.43,201.4,4.9649]
[1738816940652,8.56531788,201.43,201.39,0.03741781]
[1738816941953,8.56531788,201.43,201.39,5.00231781]
[1738816942553,8.56531788,201.43,201.4,4.9649]
[1738816943057,0.03220491,201.43,201.4,4.9649]
[1738816944458,0.03220491,201.43,201.39,0.03741781]
[1738816944760,0.03220491,201.43,201.41,4.9647]
[1738816945757,0.03220491,201.43,201.39,0.03741781]
[1738816945962,8.56531788,201.43,201.39,0.03741781]
[1738816947956,8.56531788,201.43,201.39,5.00261781]
[1738816948562,8.53311297,201.41,201.39,0.03741781]
[1738816949252,4.9649,201.4,201.39,0.03741781]
[1738816953664,8.53311297,201.41,201.29,1.4634]
[1738816953858,8.53311297,201.35,201.29,1.4634]
[1738816954257,8.53311297,201.35,201.32,4.9668]
[1738816956068,8.53311297,201.35,201.31,0.03783884]
[1738816957158,13.49931297,201.35,201.31,0.03783884]
[1738816958069,8.53311297,201.33,201.31,0.03783884]
[1738816958666,13.49981297,201.33,201.31,0.03783884]
[1738816959873,4.9669,201.32,201.31,0.03783884]
[1738816963373,8.53311297,201.33,201.31,0.03783884]
[1738816965176,13.49981297,201.33,201.31,0.03783884]
[1738816965574,4.9669,201.32,201.31,0.03783884]
[1738816971379,4.9669,201.32,201.31,3.884e-05]
[1738816971678,8.53311297,201.33,201.2,8.53311297]
[1738816971878,8.53311297,201.26,201.18,8.53311297]
[1738816972884,0.03736032,201.25,201.21,4.9696]
[1738816973582,0.03736032,201.25,201.2,5.00638137]
[1738816974385,0.03736032,201.25,201.23,4.969]
[1738816974682,0.03736032,201.25,201.2,8.56959434]
[1738816975183,0.03736032,201.25,201.24,4.9689]
[1738816977586,8.53311297,201.28,201.2,8.56959434]
[1738816977789,8.53311297,201.28,201.26,4.9683]
[1738816978687,8.53311297,201.3,201.26,4.9683]
[1738816978886,0.03376953,201.29,201.26,4.9683]
[1738816981388,8.53311297,201.28,201.25,5.00245222]
[1738816981590,8.53311297,201.28,201.25,0.03385222]
[1738816983387,0.03376953,201.29,201.25,0.03385222]
[1738816983593,0.03376953,201.29,201.26,4.9684]
[1738816984282,0.03376953,201.29,201.25,5.00245222]
[1738816984691,8.53311297,201.28,201.25,5.00245222]
[1738816991893,8.53311297,201.28,201.25,0.03385222]
[1738816994194,13.50101297,201.28,201.25,0.03385222]
[1738816997795,8.53311297,201.26,201.25,0.03385222]
[1738817002702,8.53311297,201.28,201.25,0.03385222]
[1738817003404,13.50101297,201.28,201.25,0.03385222]
[1738817006603,8.53311297,201.28,201.25,0.03385222]
[1738817007405,8.53311297,201.28,201.25,5.00245222]
[1738817007602,0.03376953,201.29,201.25,0.03385222]
[1738817008312,8.53311297,201.28,201.25,0.03385222]
[1738817009715,8.53311297,201.28,201.25,5.00245222]
[1738817014415,8.53311297,201.26,201.25,0.03385222]
[1738817018323,0.03376953,201.29,201.25,0.03385222]
[1738817020027,8.53311297,201.28,201.25,0.03385222]
[1738817023231,0.03376953,201.29,201.25,5.00245222]
[1738817023427,0.03376953,201.29,201.25,0.03385222]
[1738817024827,0.03376953,201.29,201.26,4.9683]
[1738817026028,0.03376953,201.29,201.25,0.03385222]
[1738817026333,0.03376953,201.29,201.28,4.9679]
[1738817028030,0.03376953,201.29,201.28,13.50101297]
[1738817028733,8.53311297,201.36,201.31,4.9669]
[1738817029934,8.57056659,201.36,201.32,4.9668]
[1738817030935,0.03745362,201.36,201.34,4.9664]
[1738817031731,0.03745362,201.36,201.31,0.03530166]
[1738817031933,0.03745362,201.36,201.34,4.9662]
[1738817034231,0.03745362,201.36,201.35,4.9662]
[1738817036036,8.53311297,201.42,201.38,4.9652]
[1738817037031,8.53311297,201.42,201.38,5.00147931]
[1738817037236,8.5691983,201.42,201.38,5.00147931]
[1738817041434,8.53311297,201.4,201.38,5.00147931]
[1738817043032,8.5691983,201.42,201.39,4.9652]
[1738817043234,8.5691983,201.42,201.38,0.03627931]
[1738817043733,0.03608533,201.42,201.41,4.9647]
[1738817044543,8.53311297,201.48,201.44,4.9639]
[1738817044736,8.53311297,201.48,201.4,8.53311297]
[1738817045639,0.03692477,201.46,201.43,4.964]
[1738817045940,0.03692477,201.46,201.42,8.56559335]
[1738817046940,0.03692477,201.46,201.45,4.9637]
[1738817048843,8.53311297,201.54,201.44,8.53311297]
[1738817049042,8.53311297,201.54,201.39,4.6486]
[1738817049043,8.53311297,201.54,201.47,8.53311297]
[1738817049844,0.03240701,201.53,201.5,4.9624]
[1738817050541,0.03240701,201.53,201.51,4.9621]
[1738817051443,0.03240701,201.53,201.49,8.53311297]
[1738817051644,0.03240701,201.53,201.48,0.03223821]
[1738817052246,0.03240701,201.53,201.49,4.9627]
[1738817053539,8.53311297,201.5,201.48,0.03223821]
[1738817054242,4.9627,201.49,201.48,0.03223821]
[1738817055037,4.9627,201.49,201.4,76.12655015]
[1738817055038,4.9635,201.46,201.4,81.09145015]
[1738817055235,8.53311297,201.44,201.4,81.09145015]
[1738817055937,8.53311297,201.44,201.4,4.9649]
[1738817056444,8.57139148,201.44,201.4,4.99913731]
[1738817057244,8.57139148,201.44,201.4,0.03423731]
[1738817058144,13.53539148,201.44,201.4,0.03423731]
[1738817059538,8.53311297,201.42,201.4,0.03423731]
[1738817059737,13.49761297,201.42,201.4,0.03423731]
[1738817059936,8.53311297,201.42,201.4,0.03423731]
[1738817060339,4.9647,201.41,201.4,0.03423731]
[1738817061135,8.53311297,201.42,201.4,0.03423731]
[1738817061747,13.49751297,201.42,201.4,0.03423731]
[1738817062952,4.9647,201.41,201.4,0.03423731]
[1738817063652,8.53311297,201.42,201.4,0.03423731]
[1738817066850,13.49761297,201.42,201.4,0.03423731]
[1738817067352,4.9647,201.41,201.4,0.03423731]
[1738817080764,8.53311297,201.42,201.4,0.03423731]
[1738817081463,4.9647,201.41,201.4,0.03423731]
[1738817083866,8.53311297,201.42,201.4,0.03423731]
[1738817084566,8.57139148,201.44,201.4,0.03423731]
[1738817086269,8.57139148,201.44,201.41,4.9647]
[1738817086270,0.03827851,201.44,201.41,4.9647]
[1738817087168,8.57139148,201.44,201.4,0.03423731]
[1738817088467,0.03827851,201.44,201.4,0.03423731]
[1738817090362,8.57139148,201.44,201.4,0.03423731]
[1738817090868,13.53549148,201.44,201.4,0.03423731]
[1738817091063,8.57139148,201.44,201.4,0.03423731]
[1738817091268,8.53311297,201.42,201.4,0.03423731]
[1738817095372,8.57139148,201.44,201.4,0.03423731]
[1738817095975,13.53539148,201.44,201.4,0.03423731]
[1738817097173,8.57139148,201.44,201.4,0.03423731]
[1738817099078,13.53539148,201.44,201.4,0.03423731]
[1738817100579,8.53311297,201.42,201.4,0.03423731]
[1738817101684,8.57139148,201.44,201.4,0.03423731]
[1738817102076,8.57139148,201.44,201.4,4.99913731]
[1738817102272,0.03827851,201.44,201.4,0.03423731]
[1738817102783,0.03827851,201.44,201.42,4.9644]
[1738817102982,0.03827851,201.44,201.4,0.03423731]
[1738817103979,0.03827851,201.44,201.41,4.9646]
[1738817105181,0.03827851,201.44,201.42,4.9642]
[1738817105385,0.03827851,201.44,201.4,0.03423731]
[1738817105386,0.03827851,201.44,201.41,8.53311297]
[1738817106484,13.49561297,201.5,201.44,4.9639]
[1738817107682,0.03546835,201.49,201.45,0.03564388]
[1738817107887,8.53311297,201.48,201.45,0.03564388]
[1738817108186,8.53311297,201.46,201.45,0.03564388]
[1738817110886,13.49661297,201.46,201.45,0.03564388]
[1738817111889,8.53311297,201.46,201.45,0.03564388]
[1738817117897,13.49661297,201.46,201.45,0.03564388]
[1738817118592,8.53311297,201.39,201.36,3.0635]
[1738817119590,0.03569925,201.4,201.36,3.0635]
[1738817123295,8.53311297,201.39,201.35,0.03250688]
[1738817123595,8.53311297,201.37,201.35,0.03250688]
[1738817124698,4.9659,201.36,201.35,0.03250688]
[1738817129199,8.53311297,201.37,201.27,3.0426]
[1738817129402,8.53311297,201.3,201.26,1.568]
[1738817129903,8.53311297,201.3,201.23,8.53311297]
[1738817130501,0.03751608,201.29,201.24,5.00571408]
[1738817133303,0.03751608,201.29,201.27,4.9681]
[1738817134208,0.03751608,201.29,201.25,4.9684]
[1738817134602,0.03751608,201.29,201.24,0.03691408]
[1738817135009,0.03751608,201.29,201.27,4.968]
[1738817136809,0.03751608,201.29,201.24,0.03691408]
[1738817137211,8.53311297,201.28,201.24,0.03691408]
[1738817138112,8.53311297,201.28,201.24,5.00581408]
[1738817138611,4.9686,201.25,201.24,0.03691408]
[1738817139206,8.53311297,201.26,201.24,0.03691408]
[1738817139908,8.53311297,201.28,201.24,0.03691408]
[1738817140110,0.03751608,201.29,201.24,0.03691408]
[1738817140611,0.03751608,201.29,201.24,5.00561408]
[1738817141212,8.53311297,201.28,201.24,5.00561408]
[1738817141414,8.53311297,201.28,201.24,0.03691408]
[1738817142009,8.53311297,201.28,201.24,5.00561408]
[1738817143709,8.53311297,201.28,201.24,0.03691408]
[1738817143913,0.03751608,201.29,201.26,4.9684]
[1738817147512,0.03751608,201.29,201.24,0.03691408]
[1738817147814,0.03751608,201.29,201.27,4.9681]
[1738817148013,0.03751608,201.29,201.24,0.03691408]
[1738817148209,0.03751608,201.29,201.28,4.9679]
[1738817148411,0.03751608,201.29,201.24,0.03691408]
[1738817148815,0.03751608,201.29,201.27,4.9681]
[1738817152112,0.03751608,201.29,201.24,0.03691408]
[1738817152412,8.53311297,201.28,201.24,0.03691408]
[1738817154019,13.50101297,201.28,201.24,0.03691408]
[1738817155817,8.53311297,201.26,201.24,0.03691408]
[1738817160923,4.9686,201.25,201.24,0.03691408]
[1738817161827,13.50151297,201.26,201.24,0.03691408]
[1738817162923,8.53311297,201.26,201.24,0.03691408]
[1738817171626,4.9686,201.25,201.24,0.03691408]
[1738817184637,4.9694,201.22,201.16,4.9708]
[1738817184835,8.53311297,201.19,201.16,4.9708]
[1738817187740,0.03731311,201.2,201.17,4.9706]
[1738817188746,0.03731311,201.2,201.19,4.9701]
[1738817190843,0.03731311,201.2,201.17,13.50351297]
[1738817191547,0.03731311,201.2,201.17,4.9704]
[1738817194949,0.03731311,201.2,201.18,4.9704]
[1738817200650,8.53311297,201.19,201.15,0.03773905]
[1738817200954,8.53311297,201.16,201.15,0.03773905]
[1738817214864,13.50401297,201.16,201.15,0.03773905]
[1738817217267,4.9714,201.14,201.05,3.0856]
[1738817217469,8.53311297,201.11,201.07,4.9729]
[1738817217672,8.53311297,201.09,201.05,3.0856]
[1738817218169,8.53311297,201.07,201.05,3.0856]
[1738817218470,8.53311297,201.07,201.05,0.03685962]
[1738817219565,8.56933068,201.09,201.05,0.03685962]
[1738817219766,0.03621771,201.09,201.05,0.03685962]
[1738817220769,0.03621771,201.09,201.06,4.9733]
[1738817221670,0.03621771,201.09,201.07,4.973]
[1738817222770,0.03621771,201.09,201.05,0.03685962]
[1738817223068,0.03621771,201.09,201.05,5.01045962]
[1738817223971,8.56933068,201.09,201.05,5.01045962]
[1738817224666,13.54193068,201.09,201.05,0.03685962]
[1738817224868,8.56933068,201.09,201.05,0.03685962]
[1738817226273,8.56933068,201.09,201.05,5.01045962]
[1738817227175,8.56933068,201.09,201.05,0.03685962]
[1738817227876,4.9733,201.06,201.05,0.03685962]
[1738817228374,8.53311297,201.07,201.05,0.03685962]
[1738817229981,13.50641297,201.07,201.05,0.03685962]
[1738817234779,0.03621771,201.09,201.05,0.03685962]
[1738817235773,8.56933068,201.09,201.05,0.03685962]
[1738817236880,0.03621771,201.09,201.05,0.03685962]
[1738817239572,0.03621771,201.09,201.05,5.01045962]
[1738817242480,0.03621771,201.09,201.05,0.03685962]
[1738817242681,13.54203068,201.09,201.05,0.03685962]
[1738817243685,8.53311297,201.07,201.05,0.03685962]
[1738817243879,8.56933068,201.09,201.05,0.03685962]
[1738817245282,8.53311297,201.07,201.05,0.03685962]
[1738817245881,13.50641297,201.07,201.05,0.03685962]
[1738817247174,8.53311297,201.07,201.05,0.03685962]
[1738817249682,0.03621771,201.09,201.05,0.03685962]
[1738817249683,8.56933068,201.09,201.05,0.03685962]
[1738817250688,0.03621771,201.09,201.05,0.03685962]
[1738817252684,8.56933068,201.09,201.05,0.03685962]
[1738817253489,0.03621771,201.09,201.05,0.03685962]
[1738817256192,0.03621771,201.09,201.05,5.01045962]
[1738817256588,0.03621771,201.09,201.05,0.03685962]
[1738817256892,8.56933068,201.09,201.05,0.03685962]
[1738817261896,13.54193068,201.09,201.05,0.03685962]
[1738817263500,8.53311297,201.07,201.05,0.03685962]
[1738817264903,4.9733,201.06,201.05,0.03685962]
[1738817273208,0.03621771,201.09,201.05,0.03685962]
[1738817273710,13.54193068,201.09,201.05,0.03685962]
[1738817274507,4.9731,201.07,201.05,0.03685962]
[1738817274711,13.50621297,201.07,201.05,0.03685962]
[1738817275712,8.53311297,201.07,201.05,0.03685962]
[1738817276115,8.56933068,201.09,201.05,0.03685962]
[1738817277914,13.54203068,201.09,201.05,0.03685962]
[1738817280417,8.56933068,201.09,201.05,0.03685962]
[1738817280616,8.56933068,201.09,201.05,5.01045962]
[1738817282318,0.03621771,201.09,201.05,5.01045962]
[1738817283016,0.03621771,201.09,201.05,0.03685962]
[1738817283217,0.03621771,201.09,201.06,4.9733]
[1738817285220,0.03621771,201.09,201.07,4.973]
[1738817285620,0.03621771,201.09,201.05,0.03685962]
[1738817285820,0.03621771,201.09,201.06,4.9733]
[1738817288626,0.03621771,201.09,201.07,4.973]
[1738817288922,0.03621771,201.09,201.05,0.03685962]
[1738817289725,0.03621771,201.09,201.05,5.01015962]
[1738817296230,0.03621771,201.09,201.06,13.50621297]
[1738817299731,0.03621771,201.09,201.07,4.9731]
[1738817299933,0.03621771,201.09,201.06,8.53311297]
[1738817300427,8.53311297,201.15,201.08,8.53311297]
[1738817300631,8.53311297,201.17,201.1,8.53311297]
[1738817301632,0.03431095,201.16,201.11,5.00872716]
[1738817301827,0.03431095,201.16,201.11,0.03662716]
[1738817302034,8.53311297,201.15,201.11,0.03662716]
[1738817303529,13.50421297,201.15,201.11,0.03662716]
[1738817304336,13.50481297,201.13,201.11,0.03662716]
[1738817309546,4.9718,201.12,201.11,0.03662716]
[1738817313748,13.50471297,201.13,201.11,0.03662716]
[1738817314754,8.53311297,201.13,201.11,0.03662716]
[1738817315252,8.53311297,201.15,201.11,0.03662716]
[1738817320357,8.53311297,201.15,201.11,5.00872716]
[1738817321052,8.53311297,201.15,201.11,0.03662716]
[1738817326357,0.03431095,201.16,201.12,4.9716]
[1738817326960,0.03431095,201.16,201.11,0.03662716]
[1738817327160,0.03431095,201.16,201.11,3.09182716]
[1738817328362,0.03431095,201.16,201.12,4.9718]
[1738817329258,8.53311297,201.15,201.11,3.09182716]
[1738817329553,8.53311297,201.15,201.11,0.03662716]
[1738817332765,13.50421297,201.15,201.11,0.03662716]
[1738817338170,8.53311297,201.15,201.11,0.03662716]
[1738817341673,8.53311297,201.15,201.11,5.00872716]
[1738817343375,0.03431095,201.16,201.12,8.53311297]
[1738817343680,0.03431095,201.16,201.14,8.53311297]
[1738817344477,0.03431095,201.16,201.15,4.9711]
[1738817346181,0.03431095,201.16,201.12,9.99891297]
[1738817346373,0.03431095,201.16,201.13,4.9714]
[1738817347284,0.03431095,201.16,201.14,4.9713]
[1738817348286,0.03431095,201.16,201.15,4.9711]
[1738817349791,8.53311297,201.23,201.2,4.9698]
[1738817350192,8.53311297,201.25,201.21,4.9696]
[1738817350887,8.57105632,201.25,201.21,0.03381553]
[1738817351592,8.53311297,201.23,201.21,0.03381553]
[1738817352493,13.50221297,201.23,201.21,0.03381553]
[1738817352687,0.03794335,201.25,201.21,8.5669285]
[1738817352893,0.03794335,201.25,201.23,4.9691]
[1738817354793,0.03794335,201.25,201.21,8.5669285]
[1738817355497,0.03794335,201.25,201.21,5.00321553]
[1738817362302,0.03794335,201.25,201.22,4.9692]
[1738817362601,0.03794335,201.25,201.21,8.5669285]
[1738817363900,0.03794335,201.25,201.23,4.969]
[1738817367306,0.03794335,201.25,201.21,8.5669285]
[1738817367307,0.03794335,201.25,201.21,13.5363285]
[1738817379822,0.03794335,201.25,201.22,4.9693]
[1738817381020,0.03794335,201.25,201.24,4.9689]
[1738817385125,0.03794335,201.25,201.23,8.53311297]
[1738817385327,0.03794335,201.25,201.21,8.5669285]
[1738817386729,0.03794335,201.25,201.23,4.9691]
[1738817389026,0.03794335,201.25,201.21,8.5669285]
[1738817389232,0.03794335,201.25,201.24,4.9689]
[1738817390332,0.03794335,201.25,201.22,4.9692]
[1738817391131,0.03794335,201.25,201.23,4.9691]
[1738817398235,4.9689,201.24,201.21,0.03381553]
[1738817398432,8.53311297,201.22,201.21,0.03381553]
[1738817407243,13.50251297,201.22,201.21,0.03381553]
[1738817414140,8.53311297,201.22,201.09,8.53311297]
[1738817414342,19.5183,201.28,201.08,4.9726]
[1738817414343,8.53311297,201.14,201.08,4.9726]
[1738817414538,8.53311297,201.14,201.05,8.53311297]
[1738817415146,8.53311297,201.12,201.07,4.973]
[1738817415345,8.5667509,201.12,201.07,0.03195209]
[1738817415543,0.03363793,201.12,201.07,8.56506506]
[1738817416645,0.03363793,201.12,201.09,4.9724]
[1738817419447,0.03363793,201.12,201.07,8.56506506]
[1738817419649,0.03363793,201.12,201.1,4.9723]
[1738817423151,0.03363793,201.12,201.09,8.53311297]
[1738817423351,0.03363793,201.12,201.11,13.50521297]
[1738817426953,13.50351297,201.18,201.11,8.53311297]
[1738817427144,4.9704,201.18,201.13,4.9715]
[1738817427349,4.9707,201.17,201.11,8.53311297]
[1738817427952,4.9707,201.17,201.09,11.60691297]
[1738817428251,0.03690499,201.16,201.12,0.03295192]
[1738817428854,0.03690499,201.16,201.12,5.00475192]
[1738817432249,8.57001796,201.16,201.12,5.00475192]
[1738817433455,8.57001796,201.16,201.13,4.9715]
[1738817436655,8.57001796,201.16,201.12,0.03295192]
[1738817437552,8.57001796,201.16,201.12,5.00475192]
[1738817443060,8.57001796,201.16,201.12,0.03295192]
[1738817443261,8.57001796,201.16,201.13,4.9716]
[1738817444159,0.03690499,201.16,201.15,4.9711]
[1738817444662,8.53311297,201.24,201.15,8.53311297]
[1738817445755,0.03268033,201.22,201.17,0.0351916]
[1738817446462,0.03268033,201.22,201.19,8.53311297]
[1738817447963,0.03268033,201.22,201.21,4.9696]
[1738817448859,0.03268033,201.22,201.19,8.53311297]
[1738817449065,0.03268033,201.22,201.19,4.9699]
[1738817449863,8.5657933,201.22,201.19,4.9699]
[1738817450766,8.5657933,201.22,201.17,0.0351916]
[1738817450967,8.5657933,201.22,201.17,5.0055916]
[1738817453870,8.53311297,201.2,201.17,5.0055916]
[1738817454970,8.53311297,201.2,201.17,0.0351916]
[1738817456472,8.53311297,201.18,201.17,0.0351916]
[1738817458778,13.50351297,201.18,201.17,0.0351916]
[1738817459278,8.53311297,201.18,201.17,0.0351916]
[1738817461888,8.53311297,201.18,201.05,10.04051297]
[1738817462089,8.53311297,201.13,201.05,10.04051297]
[1738817463083,0.03725119,201.11,201.07,0.03784051]
[1738817463782,0.03725119,201.11,201.08,4.9726]
[1738817467784,8.57036416,201.11,201.08,4.9726]
[1738817468390,0.03725119,201.11,201.08,4.9726]
[1738817468591,0.03725119,201.11,201.07,0.03784051]
[1738817468891,0.03725119,201.11,201.07,8.57095348]
[1738817470389,0.03725119,201.11,201.09,8.53311297]
[1738817470691,0.03725119,201.11,201.1,4.9723]
[1738817471490,0.03725119,201.11,201.09,4.9726]
[1738817471690,0.03725119,201.11,201.07,0.03784051]
[1738817472789,0.03725119,201.11,201.08,4.9727]
[1738817473187,8.57036416,201.11,201.08,4.9727]
[1738817473789,8.57036416,201.11,201.07,0.03784051]
[1738817475201,8.53311297,201.09,201.07,0.03784051]